fUST/lending_fUST_20240907
["ID","MTS","AMOUNT","RATE_DAILY","PERIOD"]
[337398446,1725640244694,-500.0,0.00019178,2]
[337398447,1725640244703,-1691.2,0.00019178,2]
[337398448,1725640244713,-500.0,0.00019178,2]
[337398449,1725640244723,-500.0,0.00019178,2]
[337398450,1725640244735,-48097.67,0.00019178,2]
[337398451,1725640244744,-500.0,0.00019178,2]
[337398452,1725640244754,-500.0,0.00019178,2]
[337398453,1725640244763,-1062.3,0.00019178,2]
[337398454,1725640244773,-500.0,0.00019178,2]
[337398455,1725640244782,-500.0,0.00019178,2]
[337398456,1725640244791,-670.38,0.00019178,2]
[337398457,1725640244801,-1757.36,0.00019178,2]
[337398458,1725640244813,-216.89162588,0.00019178,2]
[337398459,1725640244823,-500.0,0.00019178,2]
[337398460,1725640244833,-1817.39,0.00019178,2]
[337398461,1725640244843,-500.0,0.00019178,2]
[337398462,1725640244854,-500.0,0.00019178,2]
[337398463,1725640244867,-500.0,0.00019178,2]
[337398464,1725640244877,-1278.16,0.00019178,2]
[337398465,1725640244887,-500.0,0.00019178,2]
[337398466,1725640244896,-1440.55,0.00019178,2]
[337398467,1725640244906,-500.0,0.00019178,2]
[337398468,1725640244916,-500.0,0.00019178,2]
[337398469,1725640244927,-500.0,0.00019178,2]
[337398470,1725640244938,-1050.81,0.00019178,2]
[337398471,1725640244948,-1410.37,0.00019178,2]
[337398472,1725640244959,-766.12,0.00019178,2]
[337398473,1725640244969,-500.0,0.00019178,2]
[337398474,1725640244978,-500.0,0.00019178,2]
[337398475,1725640244988,-500.0,0.00019178,2]
[337398476,1725640244998,-500.0,0.00019178,2]
[337398477,1725640245007,-2052.27,0.00019178,2]
[337398478,1725640245019,-4146.25,0.00019178,2]
[337398479,1725640245030,-843.01,0.00019178,2]
[337398480,1725640245040,-500.0,0.00019178,2]
[337398481,1725640245050,-500.0,0.00019178,2]
[337398482,1725640245060,-500.0,0.00019178,2]
[337398483,1725640245070,-500.0,0.00019178,2]
[337398484,1725640245083,-500.0,0.00019178,2]
[337398485,1725640245093,-500.0,0.00019178,2]
[337398486,1725640245103,-500.0,0.00019178,2]
[337398487,1725640245112,-500.0,0.00019178,2]
[337398488,1725640245127,-500.0,0.00019178,2]
[337398489,1725640245140,-500.0,0.00019178,2]
[337398490,1725640245152,-500.0,0.00019178,2]
[337398491,1725640245161,-500.0,0.00019178,2]
[337398492,1725640245170,-500.0,0.00019178,2]
[337398493,1725640245180,-633.46315354,0.00019178,2]
[337398494,1725640245190,-500.0,0.00019178,2]
[337398495,1725640245199,-500.0,0.00019178,2]
[337398496,1725640245209,-500.0,0.00019178,2]
[337398497,1725640245219,-500.0,0.00019178,2]
[337398498,1725640245228,-500.0,0.00019178,2]
[337398499,1725640245238,-500.0,0.00019178,2]
[337398500,1725640245247,-500.0,0.00019178,2]
[337398501,1725640245256,-2102.07,0.00019178,2]
[337398503,1725640245266,-500.0,0.00019178,2]
[337398504,1725640245275,-500.0,0.00019178,2]
[337398505,1725640245284,-608.97,0.00019178,2]
[337398506,1725640245293,-166.20352387,0.00019178,2]
[337398507,1725640245303,-500.0,0.00019178,2]
[337398508,1725640245313,-881.2,0.00019178,2]
[337398509,1725640245322,-1652.44,0.00019178,2]
[337398510,1725640245331,-571.64414905,0.00019178,2]
[337398511,1725640245341,-500.0,0.00019178,2]
[337398512,1725640245350,-1872.26,0.00019178,2]
[337398513,1725640245359,-500.0,0.00019178,2]
[337398514,1725640245376,-500.0,0.00019178,2]
[337398515,1725640245386,-500.0,0.00019178,2]
[337398516,1725640245395,-816.45,0.00019178,2]
[337398517,1725640245404,-1401.93,0.00019178,2]
[337398518,1725640245413,-500.0,0.00019178,2]
[337398519,1725640245422,-500.0,0.00019178,2]
[337398520,1725640245432,-500.0,0.00019178,2]
[337398521,1725640245442,-500.0,0.00019178,2]
[337398522,1725640245451,-500.0,0.00019178,2]
[337398523,1725640245461,-500.0,0.00019178,2]
[337398524,1725640245471,-500.0,0.00019178,2]
[337398525,1725640245481,-500.0,0.00019178,2]
[337398526,1725640245490,-500.0,0.00019178,2]
[337398527,1725640245499,-479.78,0.00019178,2]
[337398528,1725640245509,-2544.68,0.00019178,2]
[337398529,1725640245519,-500.0,0.00019178,2]
[337398530,1725640245528,-500.0,0.00019178,2]
[337398531,1725640245537,-500.0,0.00019178,2]
[337398532,1725640245547,-923.74,0.00019178,2]
[337398533,1725640245557,-500.0,0.00019178,2]
[337398534,1725640245566,-500.0,0.00019178,2]
[337398535,1725640245576,-500.0,0.00019178,2]
[337398536,1725640245585,-299.45358226,0.00019178,2]
[337398537,1725640245595,-500.0,0.00019178,2]
[337398538,1725640245604,-500.0,0.00019178,2]
[337398539,1725640245616,-823.91,0.00019178,2]
[337398540,1725640245625,-500.0,0.00019178,2]
[337398541,1725640245634,-500.0,0.00019178,2]
[337398542,1725640245644,-500.0,0.00019178,2]
[337398544,1725640245653,-219.21709981,0.00019178,2]
[337398546,1725640245663,-500.0,0.00019178,2]
[337398547,1725640245672,-500.0,0.00019178,2]
[337398548,1725640245681,-588.31,0.00019178,2]
[337398549,1725640245691,-500.0,0.00019178,2]
[337398550,1725640245701,-576.17920788,0.00019178,2]
[337398552,1725640245711,-500.0,0.00019178,2]
[337398553,1725640245721,-744.07,0.00019178,2]
[337398554,1725640245731,-500.0,0.00019178,2]
[337398555,1725640245741,-500.0,0.00019178,2]
[337398556,1725640245751,-653.77,0.00019178,2]
[337398557,1725640245765,-6517.01,0.00019178,2]
[337398558,1725640245775,-500.0,0.00019178,2]
[337398559,1725640245786,-749.51,0.00019178,2]
[337398560,1725640245796,-520.83,0.00019178,2]
[337398561,1725640245805,-500.0,0.00019178,2]
[337398563,1725640245815,-620.83,0.00019178,2]
[337398564,1725640245825,-500.0,0.00019178,2]
[337398565,1725640245834,-500.0,0.00019178,2]
[337398566,1725640245844,-845.97,0.00019178,2]
[337398567,1725640245853,-751.04,0.00019178,2]
[337398568,1725640245866,-500.0,0.00019178,2]
[337398570,1725640245876,-500.0,0.00019178,2]
[337398572,1725640245885,-500.0,0.00019178,2]
[337398573,1725640245895,-913.96,0.00019178,2]
[337398574,1725640245904,-500.0,0.00019178,2]
[337398575,1725640245915,-668.08,0.00019178,2]
[337398576,1725640245925,-500.0,0.00019178,2]
[337398577,1725640245935,-569.4,0.00019178,2]
[337398578,1725640245945,-500.0,0.00019178,2]
[337398579,1725640245957,-500.0,0.00019178,2]
[337398580,1725640245967,-2285.62,0.00019178,2]
[337398581,1725640245977,-272.05085676,0.00019178,2]
[337398582,1725640245986,-610.87340552,0.00019178,2]
[337398584,1725640245995,-500.0,0.00019178,2]
[337398585,1725640246130,-222.42784698,0.00019178,2]
[337398586,1725640246160,-500.0,0.00019178,2]
[337398587,1725640246169,-500.0,0.00019178,2]
[337398588,1725640246179,-1234.55,0.00019178,2]
[337398589,1725640246188,-681.99,0.00019178,2]
[337398590,1725640246198,-500.0,0.00019178,2]
[337398591,1725640246207,-500.0,0.00019178,2]
[337398592,1725640246216,-767.97,0.00019178,2]
[337398593,1725640246226,-500.0,0.00019178,2]
[337398594,1725640246235,-1265.16,0.00019178,2]
[337398595,1725640246246,-500.0,0.00019178,2]
[337398596,1725640246257,-680.01,0.00019178,2]
[337398597,1725640246266,-500.0,0.00019178,2]
[337398598,1725640246276,-500.0,0.00019178,2]
[337398599,1725640246285,-1255.54,0.00019178,2]
[337398600,1725640246295,-500.0,0.00019178,2]
[337398601,1725640246304,-885.07,0.00019178,2]
[337398602,1725640246314,-500.0,0.00019178,2]
[337398603,1725640246324,-500.0,0.00019178,2]
[337398604,1725640246333,-500.0,0.00019178,2]
[337398605,1725640246343,-500.0,0.00019178,2]
[337398606,1725640246352,-500.0,0.00019178,2]
[337398607,1725640246362,-619.93,0.00019178,2]
[337398608,1725640246374,-500.8662381,0.00019178,2]
[337398609,1725640246384,-500.0,0.00019178,2]
[337398610,1725640246395,-500.0,0.00019178,2]
[337398611,1725640246406,-500.0,0.00019178,2]
[337398612,1725640246416,-500.0,0.00019178,2]
[337398613,1725640246428,-500.0,0.00019178,2]
[337398614,1725640246438,-1640.89,0.00019178,2]
[337398615,1725640246449,-1539.9,0.00019178,2]
[337398616,1725640246459,-500.0,0.00019178,2]
[337398617,1725640246469,-500.0,0.00019178,2]
[337398618,1725640246478,-500.0,0.00019178,2]
[337398619,1725640246488,-500.0,0.00019178,2]
[337398620,1725640246497,-1397.23,0.00019178,2]
[337398621,1725640246507,-500.0,0.00019178,2]
[337398622,1725640246517,-500.0,0.00019178,2]
[337398623,1725640246527,-585.64,0.00019178,2]
[337398624,1725640246538,-48684.53,0.00019178,2]
[337398625,1725640246548,-500.0,0.00019178,2]
[337398626,1725640246559,-500.0,0.00019178,2]
[337398627,1725640246569,-500.0,0.00019178,2]
[337398628,1725640246578,-500.0,0.00019178,2]
[337398629,1725640246587,-500.0,0.00019178,2]
[337398630,1725640246598,-500.0,0.00019178,2]
[337398631,1725640246607,-521.79208002,0.00019178,2]
[337398632,1725640246620,-500.0,0.00019178,2]
[337398633,1725640246629,-500.0,0.00019178,2]
[337398634,1725640246638,-790.55,0.00019178,2]
[337398635,1725640246648,-500.0,0.00019178,2]
[337398636,1725640246657,-500.0,0.00019178,2]
[337398637,1725640246667,-487.03897249,0.00019178,2]
[337398638,1725640246678,-500.0,0.00019178,2]
[337398639,1725640246687,-500.0,0.00019178,2]
[337398640,1725640246696,-500.0,0.00019178,2]
[337398641,1725640246706,-500.0,0.00019178,2]
[337398642,1725640246717,-500.0,0.00019178,2]
[337398643,1725640246727,-500.0,0.00019178,2]
[337398644,1725640246738,-500.0,0.00019178,2]
[337398645,1725640246747,-1476.42,0.00019178,2]
[337398646,1725640246757,-866.79,0.00019178,2]
[337398647,1725640246767,-184.056102,0.00019178,2]
[337398648,1725640246776,-251.0,0.00019178,2]
[337398649,1725640246786,-177.964352,0.00019178,2]
[337398650,1725640246795,-1244.74,0.000192,2]
[337398651,1725640246805,-150.112233,0.000192,2]
[337398652,1725640246814,-150.112233,0.000192,2]
[337398653,1725640246824,-150.112233,0.000192,2]
[337398654,1725640246834,-275.175022,0.000192,2]
[337398655,1725640246843,-420.0,0.00019253,2]
[337398656,1725640246852,-150.112235,0.000194,2]
[337398657,1725640246862,-420.0,0.00019403,2]
[337398658,1725640246872,-38137.86780646,0.00019452,3]
[337398659,1725640246882,-35183.54024075,0.00019452,5]
[337398660,1725640246891,-216.38354753,0.00019452,2]
[337398661,1725640246902,-500.0,0.00019452,2]
[337398662,1725640246911,-500.0,0.00019452,2]
[337398663,1725640246921,-500.0,0.00019452,2]
[337398664,1725640246930,-500.0,0.00019452,2]
[337398665,1725640246940,-500.0,0.00019452,2]
[337398666,1725640246949,-500.0,0.00019452,2]
[337398667,1725640246959,-500.0,0.00019452,2]
[337398668,1725640246968,-500.0,0.00019452,2]
[337398669,1725640246978,-500.0,0.00019452,2]
[337398670,1725640246987,-500.0,0.00019452,2]
[337398671,1725640246996,-500.0,0.00019452,2]
[337398672,1725640247006,-500.0,0.00019452,2]
[337398673,1725640247015,-514.25015873,0.00019452,2]
[337398674,1725640247025,-500.0,0.00019452,2]
[337398675,1725640247034,-610.77,0.00019452,2]
[337398676,1725640247044,-500.0,0.00019452,2]
[337398677,1725640247053,-500.0,0.00019452,2]
[337398678,1725640247063,-500.0,0.00019452,2]
[337398679,1725640247075,-500.0,0.00019452,2]
[337398680,1725640247086,-500.0,0.00019452,2]
[337398681,1725640247097,-500.0,0.00019452,2]
[337398682,1725640247106,-500.0,0.00019452,2]
[337398683,1725640247117,-486.54007129,0.00019452,2]
[337398684,1725640247127,-500.0,0.00019452,2]
[337398685,1725640247136,-500.0,0.00019452,2]
[337398686,1725640247147,-813.65,0.00019452,2]
[337398687,1725640247156,-500.0,0.00019452,2]
[337398688,1725640247166,-507.27544196,0.00019452,2]
[337398689,1725640247175,-849.4,0.00019452,2]
[337398690,1725640247185,-500.0,0.00019452,2]
[337398691,1725640247194,-500.0,0.00019452,2]
[337398692,1725640247204,-500.0,0.00019452,2]
[337398693,1725640247214,-500.0,0.00019452,2]
[337398694,1725640247223,-500.0,0.00019452,2]
[337398695,1725640247233,-500.0,0.00019452,2]
[337398696,1725640247242,-500.0,0.00019452,2]
[337398697,1725640247252,-500.0,0.00019452,2]
[337398698,1725640247261,-500.0,0.00019452,2]
[337398699,1725640247271,-500.0,0.00019452,2]
[337398700,1725640247280,-500.0,0.00019452,2]
[337398701,1725640247290,-500.0,0.00019452,2]
[337398702,1725640247299,-500.0,0.00019452,2]
[337398703,1725640247309,-500.0,0.00019452,2]
[337398704,1725640247318,-500.0,0.00019452,2]
[337398705,1725640247329,-500.0,0.00019452,2]
[337398706,1725640247338,-503.92249356,0.00019452,2]
[337398707,1725640247349,-500.0,0.00019452,2]
[337398708,1725640247358,-500.0,0.00019452,2]
[337398709,1725640247370,-200.0,0.00019452,2]
[337398710,1725640247379,-500.0,0.00019452,2]
[337398711,1725640247388,-296.33697978,0.00019452,2]
[337398712,1725640247398,-500.0,0.00019452,2]
[337398713,1725640247407,-500.0,0.00019452,2]
[337398714,1725640247417,-500.0,0.00019452,2]
[337398715,1725640247426,-500.0,0.00019452,2]
[337398716,1725640247435,-500.0,0.00019452,2]
[337398717,1725640247444,-500.0,0.00019452,2]
[337398718,1725640247454,-500.0,0.00019452,2]
[337398719,1725640247463,-500.0,0.00019452,2]
[337398720,1725640247472,-500.0,0.00019452,2]
[337398721,1725640247481,-500.0,0.00019452,2]
[337398722,1725640247491,-500.0,0.00019452,2]
[337398723,1725640247500,-526.92186355,0.00019452,2]
[337398724,1725640247510,-500.0,0.00019452,2]
[337398725,1725640247519,-500.0,0.00019452,2]
[337398726,1725640247529,-500.0,0.00019452,2]
[337398727,1725640247538,-500.0,0.00019452,2]
[337398728,1725640247547,-500.0,0.00019452,2]
[337398729,1725640247557,-571.33,0.00019452,2]
[337398730,1725640247566,-500.0,0.00019452,2]
[337398731,1725640247575,-742.91,0.00019452,2]
[337398732,1725640247585,-500.0,0.00019452,2]
[337398733,1725640247594,-500.0,0.00019452,2]
[337398734,1725640247603,-500.0,0.00019452,2]
[337398735,1725640247613,-500.0,0.00019452,2]
[337398736,1725640247624,-500.0,0.00019452,2]
[337398737,1725640247633,-500.0,0.00019452,2]
[337398738,1725640247643,-500.0,0.00019452,2]
[337398739,1725640247652,-500.0,0.00019452,2]
[337398740,1725640247661,-500.0,0.00019452,2]
[337398741,1725640247671,-500.0,0.00019452,2]
[337398742,1725640247680,-500.0,0.00019452,2]
[337398743,1725640247690,-500.0,0.00019452,2]
[337398744,1725640247699,-809.25,0.00019452,2]
[337398745,1725640247709,-500.0,0.00019452,2]
[337398746,1725640247718,-500.0,0.00019452,2]
[337398747,1725640247728,-999.72,0.00019452,2]
[337398748,1725640247738,-500.0,0.00019452,2]
[337398749,1725640247748,-500.0,0.00019452,2]
[337398750,1725640247757,-926.43,0.00019452,2]
[337398751,1725640247767,-500.0,0.00019452,2]
[337398752,1725640247776,-500.0,0.00019452,2]
[337398753,1725640247785,-500.0,0.00019452,2]
[337398754,1725640247794,-500.0,0.00019452,2]
[337398755,1725640247803,-500.0,0.00019452,2]
[337398756,1725640247812,-500.0,0.00019452,2]
[337398757,1725640247821,-500.0,0.00019452,2]
[337398758,1725640247830,-500.0,0.00019452,2]
[337398759,1725640247839,-527.05782624,0.00019452,2]
[337398760,1725640247849,-188.4916022,0.00019452,2]
[337398761,1725640248149,-311.5083978,0.00019452,2]
[337398762,1725640248160,-500.0,0.00019452,2]
[337398763,1725640248170,-500.0,0.00019452,2]
[337398764,1725640248180,-500.0,0.00019452,2]
[337398765,1725640248189,-746.96,0.00019452,2]
[337398766,1725640248198,-500.0,0.00019452,2]
[337398767,1725640248208,-579.79,0.00019452,2]
[337398768,1725640248217,-500.0,0.00019452,2]
[337398769,1725640248227,-500.0,0.00019452,2]
[337398770,1725640248236,-500.0,0.00019452,2]
[337398771,1725640248246,-500.0,0.00019452,2]
[337398772,1725640248256,-741.65,0.00019452,2]
[337398773,1725640248266,-500.0,0.00019452,2]
[337398774,1725640248275,-554.41,0.00019452,2]
[337398775,1725640248285,-500.0,0.00019452,2]
[337398776,1725640248295,-500.0,0.00019452,2]
[337398777,1725640248304,-522.16317989,0.00019452,2]
[337398778,1725640248314,-509.23242962,0.00019452,2]
[337398779,1725640248323,-500.0,0.00019452,2]
[337398780,1725640248333,-589.04,0.00019452,2]
[337398781,1725640248342,-500.0,0.00019452,2]
[337398782,1725640248352,-500.0,0.00019452,2]
[337398783,1725640248362,-814.33,0.00019452,2]
[337398784,1725640248373,-500.0,0.00019452,2]
[337398785,1725640248382,-500.0,0.00019452,2]
[337398786,1725640248392,-407.94851454,0.00019452,2]
[337398787,1725640248551,-428.55547242,0.00019178,2]
[337398788,1725640248563,-71.44452758,0.00019178,2]
[337398789,1725640248572,-401.81892313,0.00019178,2]
[337398790,1725640249009,-20.36138929,0.00019178,2]
[337398791,1725640249565,-77.81968758,0.00019178,2]
[337398792,1725640249575,-92.05148546,0.00019452,2]
[337398793,1725640249585,-379.46371766,0.00019452,2]
[337398794,1725640249594,-500.0,0.00019452,2]
[337398795,1725640249604,-500.0,0.00019452,2]
[337398796,1725640249613,-500.0,0.00019452,2]
[337398797,1725640249624,-500.0,0.00019452,2]
[337398798,1725640249634,-500.0,0.00019452,2]
[337398799,1725640249644,-500.0,0.00019452,2]
[337398800,1725640249654,-500.0,0.00019452,2]
[337398801,1725640249664,-500.0,0.00019452,2]
[337398802,1725640249674,-500.0,0.00019452,2]
[337398803,1725640249684,-500.0,0.00019452,2]
[337398804,1725640249694,-500.0,0.00019452,2]
[337398805,1725640249704,-500.0,0.00019452,2]
[337398806,1725640249714,-500.0,0.00019452,2]
[337398807,1725640249724,-500.0,0.00019452,2]
[337398808,1725640249733,-500.0,0.00019452,2]
[337398809,1725640249747,-500.0,0.00019452,2]
[337398810,1725640249758,-500.0,0.00019452,2]
[337398811,1725640249768,-500.0,0.00019452,2]
[337398812,1725640249778,-500.0,0.00019452,2]
[337398813,1725640249787,-500.0,0.00019452,2]
[337398814,1725640249796,-500.0,0.00019452,2]
[337398815,1725640249806,-500.0,0.00019452,2]
[337398816,1725640249815,-500.0,0.00019452,2]
[337398817,1725640249828,-260.08043509,0.00019452,2]
[337398818,1725640249840,-500.0,0.00019452,2]
[337398819,1725640249852,-500.0,0.00019452,2]
[337398820,1725640249862,-500.0,0.00019452,2]
[337398821,1725640249875,-500.0,0.00019452,2]
[337398822,1725640249884,-500.0,0.00019452,2]
[337398823,1725640249894,-500.0,0.00019452,2]
[337398824,1725640249904,-500.0,0.00019452,2]
[337398825,1725640249913,-502.94461312,0.00019452,2]
[337398826,1725640249923,-500.0,0.00019452,2]
[337398827,1725640249932,-500.0,0.00019452,2]
[337398828,1725640249941,-500.0,0.00019452,2]
[337398829,1725640249950,-500.0,0.00019452,2]
[337398830,1725640249960,-500.0,0.00019452,2]
[337398831,1725640249970,-500.0,0.00019452,2]
[337398832,1725640249979,-589.16,0.00019452,2]
[337398833,1725640249990,-500.0,0.00019452,2]
[337398834,1725640249999,-500.0,0.00019452,2]
[337398835,1725640250009,-500.0,0.00019452,2]
[337398836,1725640250020,-500.0,0.00019452,2]
[337398837,1725640250030,-500.0,0.00019452,2]
[337398838,1725640250042,-500.0,0.00019452,2]
[337398839,1725640250054,-500.0,0.00019452,2]
[337398840,1725640250064,-500.0,0.00019452,2]
[337398841,1725640250077,-500.0,0.00019452,2]
[337398842,1725640250087,-500.0,0.00019452,2]
[337398843,1725640250096,-500.0,0.00019452,2]
[337398844,1725640250106,-500.0,0.00019452,2]
[337398845,1725640250118,-987.27,0.00019452,2]
[337398846,1725640250127,-500.0,0.00019452,2]
[337398847,1725640250137,-500.0,0.00019452,2]
[337398848,1725640250147,-500.0,0.00019452,2]
[337398849,1725640250159,-795.13,0.00019452,2]
[337398850,1725640250169,-500.0,0.00019452,2]
[337398851,1725640250179,-500.0,0.00019452,2]
[337398852,1725640250190,-500.0,0.00019452,2]
[337398853,1725640250200,-618.42,0.00019452,2]
[337398854,1725640250211,-500.0,0.00019452,2]
[337398855,1725640250221,-500.0,0.00019452,2]
[337398856,1725640250233,-651.04,0.00019452,2]
[337398857,1725640250245,-500.0,0.00019452,2]
[337398858,1725640250256,-500.0,0.00019452,2]
[337398859,1725640250267,-500.0,0.00019452,2]
[337398860,1725640250278,-821.38,0.00019452,2]
[337398861,1725640250289,-500.0,0.00019452,2]
[337398862,1725640250300,-500.0,0.00019452,2]
[337398863,1725640250312,-196.48896559,0.00019452,2]
[337398864,1725640250323,-500.0,0.00019452,2]
[337398865,1725640250334,-500.0,0.00019452,2]
[337398866,1725640250344,-592.44,0.00019452,2]
[337398867,1725640250355,-500.0,0.00019452,2]
[337398868,1725640250367,-500.0,0.00019452,2]
[337398869,1725640250378,-1272.15,0.00019452,2]
[337398870,1725640250388,-1117.88,0.00019452,2]
[337398871,1725640250399,-191.62836598,0.00019452,2]
[337398872,1725640250410,-500.0,0.00019452,2]
[337398873,1725640250423,-500.0,0.00019452,2]
[337398874,1725640250433,-1080.6,0.00019452,2]
[337398875,1725640250443,-500.0,0.00019452,2]
[337398876,1725640250454,-1014.72,0.00019452,2]
[337398877,1725640250464,-500.0,0.00019452,2]
[337398878,1725640250474,-500.0,0.00019452,2]
[337398879,1725640250486,-500.0,0.00019452,2]
[337398880,1725640250496,-500.0,0.00019452,2]
[337398881,1725640250506,-500.0,0.00019452,2]
[337398882,1725640250518,-500.0,0.00019452,2]
[337398883,1725640250529,-500.0,0.00019452,2]
[337398884,1725640250539,-500.0,0.00019452,2]
[337398885,1725640250550,-500.0,0.00019452,2]
[337398886,1725640250561,-500.0,0.00019452,2]
[337398887,1725640250571,-500.0,0.00019452,2]
[337398888,1725640250583,-772.11,0.00019452,2]
[337398889,1725640250594,-500.0,0.00019452,2]
[337398890,1725640250605,-814.17,0.00019452,2]
[337398891,1725640250616,-500.0,0.00019452,2]
[337398892,1725640250629,-500.0,0.00019452,2]
[337398893,1725640250641,-559.08059353,0.00019452,2]
[337398894,1725640250654,-500.0,0.00019452,2]
[337398895,1725640250665,-500.0,0.00019452,2]
[337398896,1725640250675,-500.0,0.00019452,2]
[337398897,1725640250686,-500.0,0.00019452,2]
[337398898,1725640250696,-500.0,0.00019452,2]
[337398899,1725640250707,-500.0,0.00019452,2]
[337398900,1725640250718,-500.0,0.00019452,2]
[337398901,1725640250730,-500.0,0.00019452,2]
[337398902,1725640250741,-532.89445454,0.00019452,2]
[337398903,1725640250751,-516.58339722,0.00019452,2]
[337398904,1725640250761,-500.0,0.00019452,2]
[337398905,1725640250775,-500.0,0.00019452,2]
[337398906,1725640250785,-500.0,0.00019452,2]
[337398907,1725640250795,-500.0,0.00019452,2]
[337398908,1725640250804,-500.0,0.00019452,2]
[337398909,1725640250814,-500.0,0.00019452,2]
[337398910,1725640250823,-500.0,0.00019452,2]
[337398911,1725640250833,-500.0,0.00019452,2]
[337398912,1725640250842,-500.59,0.00019452,2]
[337398913,1725640250852,-543.94938184,0.00019452,2]
[337398914,1725640250861,-500.0,0.00019452,2]
[337398915,1725640250872,-500.0,0.00019452,2]
[337398916,1725640250882,-500.0,0.00019452,2]
[337398917,1725640250893,-500.0,0.00019452,2]
[337398918,1725640250903,-1567.65,0.00019452,2]
[337398919,1725640250912,-501.82625989,0.00019452,2]
[337398920,1725640250922,-500.0,0.00019452,2]
[337398921,1725640250932,-500.0,0.00019452,2]
[337398922,1725640250941,-421.95523997,0.00019452,2]
[337398923,1725640250951,-408.19881569,0.00019452,2]
[337398924,1725640250960,-939.4,0.00019452,2]
[337398925,1725640250971,-345.39941174,0.00019452,2]
[337398926,1725640250980,-500.0,0.00019452,2]
[337398927,1725640250990,-567.34,0.00019452,2]
[337398928,1725640251001,-500.0,0.00019452,2]
[337398929,1725640251013,-500.0,0.00019452,2]
[337398930,1725640251024,-500.0,0.00019452,2]
[337398931,1725640251036,-500.0,0.00019452,2]
[337398932,1725640251047,-639.12,0.00019452,2]
[337398933,1725640251058,-500.0,0.00019452,2]
[337398934,1725640251068,-1180.54,0.00019452,2]
[337398935,1725640251082,-726.62,0.00019452,2]
[337398936,1725640251092,-500.0,0.00019452,2]
[337398937,1725640251103,-500.0,0.00019452,2]
[337398938,1725640251114,-500.0,0.00019452,2]
[337398939,1725640251125,-680.99,0.00019452,2]
[337398940,1725640251136,-501.99600001,0.00019452,2]
[337398941,1725640251148,-968.59,0.00019452,2]
[337398942,1725640251159,-500.0,0.00019452,2]
[337398943,1725640251169,-536.90233733,0.00019452,2]
[337398944,1725640251179,-404.96399183,0.00019452,2]
[337398945,1725640251188,-500.0,0.00019452,2]
[337398946,1725640251198,-500.0,0.00019452,2]
[337398947,1725640251207,-500.0,0.00019452,2]
[337398948,1725640251216,-500.0,0.00019452,2]
[337398949,1725640251226,-500.0,0.00019452,2]
[337398950,1725640251236,-500.0,0.00019452,2]
[337398951,1725640251245,-500.0,0.00019452,2]
[337398952,1725640251254,-500.0,0.00019452,2]
[337398953,1725640251264,-651.15,0.00019452,2]